Workbook

Sheet Calculator
S2: Stormwater Pipe Retention/Detention System Design Aid
F4: PROJECT DESCRIPTION
J6: Project Name: | W6: Date: | X6: MM | Y6: / | Z6: DD | AA6: / | AB6: YYYY | AH6: City / State: | AN6: / | AT6: Phone #:
J7: Engineer: | W7: Contractor: | AH7: Designed By: | AT7: Prinsco Rep:
F9: DESIGN CRITERIA
H11: Units
AJ12: One Value Must Be Zero
G13: Number of Laterals | K13: 8 | P13: Min. Depth to Invert of Pipe | T13: 9 | V13: =IF('System Calculations'!C16='System Calculations'!G4,"(ft)","(m)") -> (ft) | Z13: Stone Porosity | AC13: 40 | AE13: % | AL13: 372.3 | AO13: =IF('System Calculations'!C16='System Calculations'!G4,"(ft)","(m)") -> (ft) | AP13: OR | AS13: 0 | AV13: =IF('System Calculations'!C16='System Calculations'!G4,"(ft)","(m)") -> (ft)
G15: Max. Depth to Invert of Pipe | K15: 8 | M15: =IF('System Calculations'!C16='System Calculations'!G4,"(ft)","(m)") -> (ft) | P15: Additional Stone Below Pipe* | T15: 0 | V15: =IF('System Calculations'!C16='System Calculations'!G4,"(in)","(mm)") -> (in) | X15: Additional Stone Side of Pipe* | AC15: 0 | AE15: =IF('System Calculations'!C16='System Calculations'!G4,"(in)","(mm)") -> (in)
F17: Additional Stone Above Pipe* | K17: 0 | M17: =IF('System Calculations'!C16='System Calculations'!G4,"(in)","(mm)") -> (in)
S18: * Minimum recommended values are already included in calculations
F19: SYSTEM LAYOUT
F34: Recommended riser diameter: | N34: =IF('System Calculations'!C16='System Calculations'!G4,'System Calculations'!C48,'System Calculations'!E48) -> 24 in | Q34: Warning - Burial depth too shallow | Z34: Contact Prinsco Sales Representative
F36: Recommended cleanout size: | N36: =IF('System Calculations'!C16='System Calculations'!G4,'System Calculations'!C72,'System Calculations'!E72) -> 6 or 8 in
F38: SYSTEM STORAGE
H39: System Footprint | P39: Stone Storage | W39: Product Storage | AD39: Total System Storage
I41: =IF('System Calculations'!C16='System Calculations'!G4,'System Calculations'!C39,'System Calculations'!E39) -> 18132.30675 | K41: =IF('System Calculations'!C16='System Calculations'!G4,"(sf)","(sq. m)") -> (sf) | P41: =IF('System Calculations'!C16='System Calculations'!G4,'System Calculations'!C33,'System Calculations'!E33) -> 0 | R41: =IF('System Calculations'!C16='System Calculations'!G4,"(cf)","(cu. m)") -> (cf) | X41: =IF('System Calculations'!C16='System Calculations'!G4,'System Calculations'!C32,'System Calculations'!E32) -> 27848.04 | Z41: =IF('System Calculations'!C16='System Calculations'!G4,"(cf)","(cu. m)") -> (cf) | AE41: =IF('System Calculations'!C16='System Calculations'!G4,'System Calculations'!C34,'System Calculations'!E34) -> 27848.04 | AH41: =IF('System Calculations'!C16='System Calculations'!G4,"(cf)","(cu. m)") -> (cf) | AM41: =IF('System Calculations'!C16='System Calculations'!G4,'System Calculations'!C40,'System Calculations'!E40) -> 1750.895282 | AO41: =IF('System Calculations'!C16='System Calculations'!G4,"(cy)","(cu. m)") -> (cy) | AW41: =IF('System Calculations'!C16='System Calculations'!G4,'System Calculations'!C64,'System Calculations'!E63) -> 5339.288522 | AZ41: =IF('System Calculations'!C16='System Calculations'!G4,"(sy)","(sq. m)") -> (sy)
BD46: V 3.0

Sheet System Calculations (hidden)
B2: Table for Drop-Down Options (Comboboxes)
B3: Index # | C3: Pipe Diameters (IN) | D3: Number of Headers | E3: Solid or Perforated | F3: Include Volume of the Headers | G3: Units | H3: Pipe Diameters (mm) | I3: Pipe Options for Drop Down
B4: 1 | C4: 12 | D4: 0 | E4: Solid | F4: Yes | G4: Standard | H4: 300 | I4: =IF($C$16=$G$4,C4&" in",IF($C$16=$G$5,H4&" mm","NO UNIT")) -> 12 in
B5: 2 | C5: 15 | D5: 1 | E5: Perforated | F5: No | G5: Metric | H5: 375 | I5: =IF($C$16=$G$4,C5&" in",IF($C$16=$G$5,H5&" mm","NO UNIT")) -> 15 in
B6: 3 | C6: 18 | D6: 2 | H6: 450 | I6: 18 in
B7: 4 | C7: 24 | H7: 600 | I7: 24 in
B8: 5 | C8: 30 | H8: 750 | I8: 30 in
B9: 6 | C9: 36 | H9: 900 | I9: 36 in
B10: 7 | C10: 42 | H10: 1050 | I10: 42 in
B11: 8 | C11: 48 | H11: 1200 | I11: 48 in
B12: 9 | C12: 60 | H12: 1500 | I12: 60 in
A15: Index # output | B15: Inputs | C15: Standard | E15: Metric Conversions | G15: Pipe System Calculations
A16: 1 | B16: Units | C16: =INDEX(Profile,A16) -> Standard | G16: IF Statements | J16: Header Volume | M16: Header Dim.
A17: 1 | B17: Solid or Perforated System | C17: =INDEX(Perforated,A17) -> Solid | G17: Header Volume | H17: =IF($C$21=$C$22,'System Calculations'!K17,'System Calculations'!K18) -> 525.5538693 | J17: Fab Vol. (SS) | K17: =(2*VLOOKUP('System Calculations'!$C$21,Tables!C6:Q14,13,FALSE))+(('System Calculations'!$C$24-2)*VLOOKUP('System Calculations'!$C$21,Tables!C6:Q14,10,FALSE)) -> 525.5538693 | L17: x | M17: Header Width | N17: =(((VLOOKUP('System Calculations'!$C$22,Tables!C6:Q14,4,FALSE))*('System Calculations'!$C$24-1))+(VLOOKUP('System Calculations'!$C$21,Tables!C6:Q14,3,FALSE)))/12 -> 45.31416667 | P17: Spacing Between pipe | Q17: =VLOOKUP(C22,Tables!C6:Q14,4,0)-VLOOKUP(C22,Tables!C6:Q14,3,0) -> 23.35
B18: Stone Porosity | C18: =Calculator!AC13 -> 40 | D18: % | G18: Header Displacement | H18: =IF($C$21=$C$22,'System Calculations'!K19,'System Calculations'!K20) -> 623.9701667 | J18: Fab Vol. (DS) | K18: =K17+((VLOOKUP('System Calculations'!$C$21,Tables!C6:Q14,8,FALSE))*(((VLOOKUP('System Calculations'!$C$22,Tables!C6:Q14,4,FALSE)-(2*VLOOKUP('System Calculations'!$C$21,Tables!C6:Q14,12,FALSE)))/12)*('System Calculations'!$C$24-1)+(((VLOOKUP('System Calculations'!$C$21,Tables!C6:Q14,14,FALSE))/12)*'System Calculations'!$C$24))) -> 630.842661 | L18: ? | M18: Header Length (SS) | N18: =(VLOOKUP('System Calculations'!$C$21,Tables!C6:Q14,12,FALSE)+(0.5*VLOOKUP('System Calculations'!$C$21,Tables!C6:Q14,3,FALSE)))/12 -> 4.935
A19: 1 | B19: Include Volume of the Headers | C19: =INDEX(YesNo,A19) -> Yes | G19: Header Length (ft) | H19: =IF($C$21=$C$22,N18,N19) -> 4.935 | J19: Fab Disp. (SS) | K19: =((4*VLOOKUP('System Calculations'!$C$21,Tables!C6:Q14,12,FALSE)/12)*VLOOKUP('System Calculations'!$C$21,Tables!C6:Q14,15,FALSE))+(('System Calculations'!$C$24-2)*VLOOKUP('System Calculations'!$C$21,Tables!C6:Q14,11,FALSE)) -> 623.9701667 | L19: x | M19: Header Length (DS) | N19: =N18+(VLOOKUP('System Calculations'!$C$21,Tables!C6:Q14,14,FALSE)/12) -> 6.343333333
A20: 1 | B20: Number of Headers (0,1,2) | C20: =INDEX(HeaderConfiguration,A20) -> 0 | J20: Fab Disp. (DS) | K20: =K19+((VLOOKUP('System Calculations'!$C$21,Tables!C6:Q14,15,FALSE))*(((VLOOKUP('System Calculations'!$C$22,Tables!C6:Q14,4,FALSE)-(2*VLOOKUP('System Calculations'!$C$21,Tables!C6:Q14,12,FALSE)))/12)*('System Calculations'!$C$24-1)+(((VLOOKUP('System Calculations'!$C$21,Tables!C6:Q14,14,FALSE))/12)*'System Calculations'!$C$24))) -> 751.104975 | L20: ?
A21: 7 | B21: Header Diameter | C21: =INDEX(PipeSizes,A21) -> 42 | D21: (in) | E21: =INDEX(H4:H12,A21) -> 1050 | F21: mm
A22: 7 | B22: Lateral Diameter | C22: =INDEX(PipeSizes,A22) -> 42 | D22: (in) | E22: =INDEX(H4:H12,A22) -> 1050 | F22: mm | G22: Storage Volumes | J22: Lateral Volume | M22: System Dim. | P22: Trench Dim.
B23: System Length | C23: =IF(AND(C55>0,C56=0),C55,IF(AND(C56>0,C55=0),C57,"Error")) -> 372.3 | D23: (ft) | E23: =C23/G31 -> 113.4770364 | F23: m | G23: Product Storage | H23: =K23+IF($C$19="Yes",$C$20*H17,0) -> 27848.04 | I23: x | J23: Lateral Vol. | K23: =($C$23-($C$20*H19))*$C$24*VLOOKUP($C$22,Tables!C6:Q14,8,FALSE) -> 27848.04 | L23: x | M23: System Length (ft) | N23: =$C$23 -> 372.3 | O23: x | P23: Trench Length | Q23: =N23+(2*VLOOKUP($C$22,Tables!C6:Q14,6,FALSE))+(2*C30/12) -> 375.3
B24: Number of laterals | C24: =Calculator!K13 -> 8 | G24: System Displacement (cf) | H24: =K24+$C$20*H18 -> 33626.136 | I24: x | J24: Lateral Disp. | K24: =($C$23-($C$20*H19))*$C$24*VLOOKUP($C$22,Tables!C6:Q14,15,FALSE) -> 33626.136 | L24: x | M24: System Width (ft) | N24: =((VLOOKUP($C$22,Tables!C6:Q14,4,FALSE)*($C$24-1))+VLOOKUP($C$22,Tables!C6:Q14,3,FALSE))/12 -> 45.31416667 | O24: x | P24: Trench Width | Q24: =N24+(2*VLOOKUP($C$22,Tables!C6:Q14,6,FALSE))+(2*C30/12) -> 48.31416667
B25: Additional Stone Above | C25: =IF(C16=G4,Calculator!K17,Calculator!K17/I32) -> 0 | D25: (in) | E25: =C25*$I$32 -> 0 | F25: mm | G25: Stone Volume (cf) | H25: =(Q28*Q25)-H24 -> 47274.17262 | I25: x | M25: Lateral Length (ft) | N25: =($C$23-($C$20*H19)) -> 372.3 | O25: x | P25: Stone Envelope Height (ft) | Q25: =(VLOOKUP($C$22,Tables!C6:Q14,7,FALSE)+$C$26+VLOOKUP($C$22,Tables!C6:Q14,3,FALSE)+$C$25)/12 -> 4.461666667
B26: Additional Stone Below | C26: =IF(C16=G4,Calculator!T15,Calculator!T15/I32) -> 0 | D26: (in) | E26: =C26*$I$32 -> 0 | F26: mm | G26: Stone Volume (cy) | H26: =H25/27 -> 1750.895282 | I26: x | P26: Trench Height (ft) | Q26: =((VLOOKUP($C$22,Tables!C6:Q14,7,FALSE)+$C$26+((VLOOKUP($C$22,Tables!C6:Q14,3,FALSE)-VLOOKUP($C$22,Tables!C6:Q14,2,FALSE))/2))/12)+$C$27 -> 9.255416667
B27: Average Depth to Invert | C27: =(C28+C29)/2 -> 8.5 | D27: (ft) | E27: =C27/$G$31 -> 2.590799917 | F27: m | G27: Stone Storage | H27: =IF($C$17="Perforated",(($C$18/100)*H25),0) -> 0 | I27: x | P27: Cover Height (ft) | Q27: =Q26-((VLOOKUP($C$22,Tables!C6:Q14,7,FALSE)+$C$26)/12)-(VLOOKUP($C$22,Tables!C6:Q14,3,FALSE)/12) -> 4.79375
B28: Max. Depth to Invert of Pipe | C28: =IF(C16=G4,Calculator!K15,Calculator!K15*G31) -> 8 | D28: (ft) | E28: =C28/$G$31 -> 2.438399922 | F28: m | G28: Total System Storage | H28: =H27+H23 -> 27848.04 | I28: x | P28: System Footprint (sf) | Q28: =Q23*Q24 -> 18132.30675
B29: Min. Depth to Invert of Pipe | C29: =IF(C16=G4,Calculator!T13,Calculator!T13*G31) -> 9 | D29: (ft) | E29: =C29/$G$31 -> 2.743199912 | F29: m
B30: Additional Stone Side | C30: =IF(C16=G4,Calculator!AC15,Calculator!AC15/I32) -> 0 | D30: (in) | E30: =C30*$I$32 -> 0 | F30: mm | G30: Conversions | N30: Picture labels
B31: Outputs | G31: 3.28084 | H31: ft = | I31: 1 | J31: m | N31: System Width | P31: =IF($C$16=$G$4,ROUND(C35,1)&" ft",ROUND(E35,1)&" m") -> 45.3 ft
B32: Product Storage | C32: =H23 -> 27848.04 | D32: (cf) | E32: =C32/$G$33 -> 788.5679335 | F32: cu. m | G32: 1 | H32: in = | I32: 25.4 | J32: mm | N32: System Length | P32: =IF($C$16=$G$4,ROUND(C36,1)&" ft",ROUND(E36,1)&" m") -> 372.3 ft
B33: Stone Storage | C33: =H27 -> 0 | D33: (cf) | E33: =C33/$G$33 -> 0 | F33: cu. m | G33: 35.3147 | H33: cf = | I33: 1 | J33: cu. m | N33: Excavation Width | P33: =IF($C$16=$G$4,ROUND(C37,1)&" ft",ROUND(E37,1)&" m") -> 48.3 ft
B34: Total System Storage | C34: =H28 -> 27848.04 | D34: (cf) | E34: =C34/$G$33 -> 788.5679335 | F34: cu. m | G34: 10.7639 | H34: sf = | I34: 1 | J34: sq. m | N34: Excavation Length | P34: =IF($C$16=$G$4,ROUND(C38,1)&" ft",ROUND(E38,1)&" m") -> 375.3 ft
B35: System Width | C35: =N24 -> 45.31416667 | D35: (ft) | E35: =C35/$G$31 -> 13.81175756 | F35: m | G35: 1.30795 | H35: cy = | I35: 1 | J35: cu. m | N35: Cover Height | P35: =IF($C$16=$G$4,ROUND(C41,1)&" ft",ROUND(E41,1)&" m") -> 4.8 ft
B36: System Length | C36: =N23 -> 372.3 | D36: (ft) | E36: =C36/$G$31 -> 113.4770364 | F36: m | G36: 9 | H36: sf= | I36: 1 | J36: sy | N36: Lateral Length | P36: =IF($C$16=$G$4,ROUND(C42,1)&" ft",ROUND(E42,1)&" m") -> 372.3 ft
B37: Excavation Width | C37: =Q24 -> 48.31416667 | D37: (ft) | E37: 14.72615753 | F37: m | N37: Initial Backfill Above Crown | P37: =IF($C$16=$G$4,ROUND(C43,1)&" in",ROUND(E43,1)&" mm") -> 0 in
B38: Excavation Length | C38: =Q23 -> 375.3 | D38: (ft) | E38: 114.3914363 | F38: m | N38: Bedding | P38: =IF($C$16=$G$4,ROUND(C44,1)&" in",ROUND(E44,1)&" mm") -> 6 in
B39: System Footprint | C39: =Q28 -> 18132.30675 | D39: (sf) | E39: =C39/G34 -> 1684.548049 | F39: sq. m | N39: Side Wall Spacing | P39: =IF($C$16=$G$4,ROUND(C45,1)&" in",ROUND(E45,1)&" mm") -> 18 in
B40: Required Stone | C40: =H26 -> 1750.895282 | D40: (cy) | E40: =C40/G35 -> 1338.656128 | F40: cu. m | N40: C-C Spacing | P40: =IF($C$16=$G$4,ROUND(C46,1)&" in",ROUND(E46,1)&" mm") -> 70.9 in
B41: Cover Height | C41: =Q27 -> 4.79375 | D41: (ft) | E41: =C41/$G$31 -> 1.461134953 | F41: m | N41: Spacing Between Pipe | P41: =IF($C$16=$G$4,ROUND(C47,1)&" in",ROUND(E47,1)&" mm") -> 23.4 in
B42: Lateral Length | C42: =N25 -> 372.3 | D42: (ft) | E42: =C42/$G$31 -> 113.4770364 | F42: m
B43: Initial Backfill Above Crown | C43: =C25 -> 0 | D43: (in) | E43: =C43*$I$32 -> 0 | F43: mm
B44: Bedding | C44: =VLOOKUP(C22,Tables!C6:Q14,7,FALSE)+C26 -> 6 | D44: (in) | E44: =C44*$I$32 -> 152.4 | F44: mm
B45: Side Wall Spacing | C45: =(VLOOKUP(C22,Tables!C6:Q14,6,FALSE)*12)+C30 -> 18 | D45: (in) | E45: 457.2 | F45: mm
B46: C-C Spacing | C46: =VLOOKUP(C22,Tables!C6:Q14,4,FALSE) -> 70.89 | D46: (in) | E46: 1800.606 | F46: mm
B47: Spacing Between Pipe | C47: =Q17 -> 23.35 | D47: (in) | E47: =C47*$I$32 -> 593.09 | F47: mm
B48: Recommended riser size | C48: =IF(C22>=36,"24 in",IF(AND(C22=30,C17="Solid"),"24 in",IF(C22>=24,"12 in","Cleanout"))) -> 24 in | D48: (in) | E48: =IF(C22>=36,"600 mm",IF(AND(C22=30,C17="Solid"),"600 mm",IF(C22>=24,"300 mm","Cleanout"))) -> 600 mm
B49: System too Shallow Formula | C49: =IF(C22>=48,1.5,IF(C22=42,1.25,1)) -> 1.25
B51: Max. Burial Depth | C51: =C28-((VLOOKUP(C22,Tables!C6:Q14,3,FALSE)-((VLOOKUP(C22,Tables!C6:Q14,3,FALSE)-VLOOKUP(C22,Tables!C6:Q14,2,FALSE))/2))/12) -> 4.29375 | D51: ft | E51: =C51/$G$31 -> 1.308734958 | F51: m
B52: Min. Burial Depth | C52: =C29-((VLOOKUP(C22,Tables!C6:Q14,3,FALSE)-((VLOOKUP(C22,Tables!C6:Q14,3,FALSE)-VLOOKUP(C22,Tables!C6:Q14,2,FALSE))/2))/12) -> 5.29375 | D52: ft | E52: =C52/$G$31 -> 1.613534948 | F52: m
B54: Lateral/System Length Calc
B55: System Length - Input | C55: =IF(C16=G4,Calculator!$AL$13,Calculator!$AL$13*G31) -> 372.3 | D55: ft | E55: =C55/$G$31 -> 113.4770364 | F55: m
B56: Lateral Length - Input | C56: =IF(C16=G4,Calculator!$AS$13,Calculator!$AS$13*G31) -> 0 | D56: ft | E56: =C56/$G$31 -> 0 | F56: m
B57: LL convert to SL | C57: =C56+(H19*C20) -> 0 | D57: ft | E57: 0 | F57: m
B59: Perimeter Calculation
B60: WC | C60: =(2*Q23*Q25)+(2*Q23*Q24)+(2*Q24*Q25) -> 40044.66391 | D60: sf
B63: Geotextile Calculation | C63: =1.2*C60 -> 48053.5967 | D63: sf | E63: =C63/G34 -> 4464.329536 | F63: sq. m
C64: =C63/G36 -> 5339.288522 | D64: sy
B66: Picture Selector
B67: =IF(AND(C21=C22,C20=2),"FDMSS",IF(AND(C21<>C22,C20=2),"FDMDS",IF(AND(C21=C22,C20=1),"FSMSS",IF(AND(C21<>C22,C20=1),"FSMDS","FNM")))) -> FNM
B68: =IF('System Calculations'!C17="Perforated","RET","DET") -> DET
B72: Recommended cleanout size | C72: 6 or 8 in | E72: 150 or 200 mm

Sheet Tables (hidden)
C4: UC (UniCor machine) (WC, which all pipe is now)
C5: System Size | D5: ID (IN) | E5: OD (IN) | F5: Manifold C/C Spacing (IN) | G5: Column Width (FT) | H5: Edge Dist. (FT) | I5: Bedding (in) | J5: Storage Capacity Non-Perf. (CF/FT) | K5: Tee Width (IN) | L5: Volume of Tee (CF) | M5: Tee Displacement (CF) | N5: 90 Stub (Center to End) | O5: Volume of 90 Elbow | P5: Stub Length - Bulkhead (IN) | Q5: Displacement - Pipe (CF/FT)
B6: 1 | C6: 12 | D6: 12.14 | E6: 14.453 | F6: 23.5 | G6: 0.7539166667 | H6: 0.6666666667 | I6: 4 | J6: 0.803831022 | K6: 23.5 | L6: 2.014542817 | M6: 2.537715126 | N6: 11.7 | O6: 1.567470493 | P6: 5.6 | Q6: 1.038609931
B7: 2 | C7: 15 | D7: 15.03 | E7: 17.65 | F7: 28.7 | G7: 0.9208333333 | H7: 0.6666666667 | I7: 4 | J7: 1.232098278 | K7: 28.7 | L7: 3.762629965 | M7: 4.566631622 | N7: 14.4 | O7: 2.957035866 | P7: 7.3 | Q7: 1.528046666
B8: 3 | C8: 18 | D8: 18.28 | E8: 21.46 | F8: 35.4 | G8: 1.161666667 | H8: 0.75 | I8: 4 | J8: 1.822551345 | K8: 35.4 | L8: 6.891025178 | M8: 8.351786243 | N8: 17.7 | O8: 5.376526467 | P8: 8.4 | Q8: 2.255868388
B9: 4 | C9: 24 | D9: 24.23 | E9: 28.145 | F9: 47.1 | G9: 1.579583333 | H9: 0.8333333333 | I9: 4 | J9: 3.202095038 | K9: 47.1 | L9: 16.11426806 | M9: 19.20255524 | N9: 23.6 | O9: 12.59490715 | P9: 11.1 | Q9: 3.88876295
B10: 5 | C10: 30 | D10: 29.86 | E10: 34.675 | F10: 55 | G10: 1.69375 | H10: 1.5 | I10: 4 | J10: 4.86303053 | K10: 55 | L10: 28.31277545 | M10: 34.01030909 | N10: 27.5 | O10: 22.28888993 | P10: 11.3 | Q10: 5.966539795
B11: 6 | C11: 36 | D11: 35.49 | E11: 40.59 | F11: 61.46 | G11: =(F11-E11)/12 -> 1.739166667 | H11: 1.5 | I11: 4 | J11: 6.87 | K11: 61.46 | L11: 44.15377349 | M11: 51.93 | N11: 30.73 | O11: 35.19 | P11: 13.5 | Q11: 8.24
B12: 7 | C12: 42 | D12: 41.41 | E12: 47.54 | F12: 70.89 | G12: =(F12-E12)/12 -> 1.945833333 | H12: 1.5 | I12: 6 | J12: 9.35 | K12: 70.89 | L12: 69.17897822 | M12: 81.76 | N12: 35.45 | O12: 55.24 | P12: 16.9 | Q12: 11.29
B13: 8 | C13: 48 | D13: 47.33 | E13: 54.12 | F13: 76.83 | G13: =(F13-E13)/12 -> 1.8925 | H13: 1.5 | I13: 6 | J13: 12.22 | K13: 76.83 | L13: 96.88628102 | M13: 113.83 | N13: 38.42 | O13: 78.25 | P13: 16.9 | Q13: 14.67
B14: 9 | C14: 60 | D14: 59.93 | E14: 66.83 | F14: 94.2 | G14: 2.28125 | H14: 1.5 | I14: 6 | J14: 19.58916592 | K14: 94.2 | L14: 189.1618307 | M14: 215.7635789 | N14: 47.1 | O14: 153.7749525 | Q14: 22.7521079
C15: 1 | D15: 2 | E15: 3 | F15: 4 | G15: 5 | H15: 6 | I15: 7 | J15: 8 | K15: 9 | L15: 10 | M15: 11 | N15: 12 | O15: 13 | P15: 14 | Q15: 15
A16: checks 9/13/22 | D16: matched system calc | E16: matched system calc | J16: matched system calc
D20: Manifold CC spacing and tee width same..

Sheet Pics (hidden)
